[Event "17th Paracin Open 2024"]
[Site "Paracin"]
[Date "2024.07.06"]
[Round "5.19"]
[White "Bicer, Atakan Mert"]
[Black "Pasti, Aron"]
[Result "0-1"]
[ECO "C78"]
[WhiteElo "2313"]
[BlackElo "2402"]
[Annotator "TA"]
[PlyCount "86"]
[EventDate "2024.07.02"]
[EventType "swiss"]
[EventCountry "SRB"]
[SourceTitle "playchess.com"]
[Source "ChessBase"]
[SourceQuality "1"]
[TimeControl "5400+30"]

{[%evp 39,86,-142,-145,-145,-175,-333,-325,-432,-450,-678,-688,-720,-716,-1527,-524,-520,-524,-525,-525,-1843,-1735,-5393,-376,-383,-385,-283,0,-370,0,-376,-354,-325,-333,-386,-370,-353,-316,-318,-312,-412,-393,-516,-520,-521,-467,-520,-510,-29984,-488]} 1. e4 {[%emt 1:31:00]} e5 {[%emt 1:31:00]} 2. Nf3 {[%emt 0:00:30]} Nc6 {[%emt 0:00:30]} 3. Bb5 {[%emt 0:00:30]} a6 {[%emt 0:00:30]} 4. Ba4 {[%emt 0:00:30]} Nf6 {[%emt 0:00:30]} 5. O-O {[%emt 0:00:30]} Bc5 {[%emt 0:00:30]} 6. c3 {[%emt 0:00:30]} O-O {[%emt 0:00:30]} 7. d4 {[%emt 0:00:30]} Ba7 {[%emt 0:00:30]} 8. dxe5 {[%emt 0:00:30] C78: Ruy Lopez: Archangelsk and Möller Defences.} Nxe4 {[%emt 0:00:30]} 9. Qd5 {[%emt 0:00:30]} Nc5 {[%emt 0:00:30]} 10. Bc2 {[%emt 0:00:30]} Ne7 {[%emt 0:00:30]} 11. Qd1 {[%emt 0:00:30]} d5 {[%emt 0:00:30]} 12. Nd4 $146 {[%emt 0:00:30]} ({Predecessor:} 12. exd6 Qxd6 13. Qxd6 cxd6 14. Na3 Bg4 15. Nd4 Ne6 16. h3 Nxd4 17. hxg4 Nxc2 18. Nxc2 {1-0 Ter Sahakyan,S (2649)-Svidler,P (2689) Chessable Masters Play In rapid 2024 (8)}) 12... Ng6 {[%emt 0:00:30]} 13. Qh5 {[%emt 0:00:30]} c6 {[%emt 0:00:30]} 14. Nd2 {[%emt 0:00:30]} Ne4 {[%emt 0:00:30]} 15. Nxe4 {[%emt 0:00:30]} dxe4 {[%emt 0:00:30]} 16. Rd1 {[%emt 0:00:30]} Qd5 {[%emt 0:00:30]} 17. Nf3 {[%emt 0:00:30]} Qb5 {[%emt 0:00:30]} 18. Ng5 {[%emt 0:00:30]} h6 {[%emt 0:00:30]} 19. Nxf7 {[%emt 0:00:30]} Rxf7 {[%emt 0:00:30]} 20. Bb3 {[%emt 0:00:30]} Bxf2+ {[%emt 0:00:30]} (20... Qxe5 $2 21. Qxg6 Bxf2+ 22. Kh1 $18) 21. Kh1 {[%emt 0:00:30] [#]} Nxe5 $1 {[%emt 0:00:30]} (21... Qxe5 $2 22. Qxg6 Qf6 23. Bxf7+ (23. Qxf7+ Qxf7 24. Rd8+ Kh7 $18) 23... Kf8 24. Qxf6 gxf6 25. Bh5 $18 (25. Bxh6+ Kxf7 26. Rd8 e3 $18)) 22. Bxh6 $2 {[%emt 0:00:30]} (22. Rd8+ $2 Kh7 $19) (22. Bf4 Bf5 23. Qxf5 Qxb3 24. Qxe5 Qxb2 25. Qxe4) 22... gxh6 $19 {[%emt 0:00:30]} 23. Qxh6 {[%emt 0:00:30]} Bf5 $1 {[%emt 0:00:30]} 24. Qg5+ {[%emt 0:00:30]} (24. Qf4 $142 Ng4 25. Rd7) 24... Kf8 $19 {[%emt 0:00:30]} 25. Qh6+ {[%emt 0:00:30]} Ke8 {[%emt 0:00:30]} 26. Rd6 {[%emt 0:00:30]} Nc4 {[%emt 0:00:30]} 27. Bxc4 {[%emt 0:00:30]} Qxc4 {[%emt 0:00:30]} 28. Rad1 {[%emt 0:00:30]} Bg3 {[%emt 0:00:30]} (28... Qxa2 $2 29. Qh8+ Ke7 30. Qxa8 $18) 29. Rf6 {[%emt 0:00:30]} Rxf6 {[%emt 0:00:30]} 30. Qxf6 {[%emt 0:00:30]} Qf7 $2 {[%emt 0:00:30]} (30... Qe2 {[%cal Re2d1]} 31. hxg3 Qxd1+ 32. Kh2 Qh5+ 33. Kg1 e3 34. Qe5+ Kf7 35. Qxe3 Qd1+ 36. Kf2 Re8 37. Qxe8+ Kxe8 38. g4 Qxg4 39. b3 Bd3 40. Ke3 Qe2+ 41. Kf4 Kf7 (41... Qxa2 42. Kg3 Qe2 43. b4 Kf7 44. Kh2 Kg6 45. Kg3 Kg5 46. Kh2 Be4 47. Kh3 Qxg2#) 42. c4 Kg6 (42... Qxg2 43. Ke3 Qe4+ 44. Kf2 Qf4+ 45. Kg2 Bf1+ 46. Kg1 Qf3 47. Kh2 Qg2#) 43. Kg3 Kg5 (43... Qxa2 44. Kf3 Qe2+ 45. Kg3 Kg5 46. c5 Be4 47. Kh3 Qxg2#) 44. Kh2 Be4 45. Kh3 Qxg2#) 31. Qh8+ $19 {[%emt 0:00:30]} Qf8 {[%emt 0:00:30]} 32. Qh5+ {[%emt 0:00:30]} Qf7 {[%emt 0:00:30]} 33. Qh8+ {[%emt 0:00:30]} Qf8 {[%emt 0:00:30]} 34. Qh5+ {[%emt 0:00:30]} Ke7 {[%emt 0:00:30]} (34... Qf7 35. Qh8+) 35. Qg5+ {[%emt 0:00:30]} Ke6 {[%emt 0:00:30]} 36. hxg3 {[%emt 0:00:30]} Qg8 {[%emt 0:00:30]} 37. Qd2 {[%emt 0:00:30]} Qh7+ {[%emt 0:00:30]} (37... Qxg3 38. Qd7+ Kf6 39. Rd6+ Kg5 40. Qg7+ Kf4 41. Qh6+ Qg5 42. Qh2+ Qg3 (42... Ke3 43. Qg1+ Ke2 44. Qd1+ Kf2 45. Qg1+ Kg3 46. Qh2+ Kg4 47. Qh3+ Kf4 48. Qh2+ Ke3 49. Qg1+ Kf4 50. Qh2+ $11) 43. Qh6+ Qg5 44. Qh2+ Kg4 (44... Ke3 45. Qg1+ Kf4 46. Qh2+ $11) 45. Qh3+ Kf4 46. Qh2+ $11) 38. Kg1 {[%emt 0:00:30]} Re8 {[%emt 0:00:30]} 39. g4 {[%emt 0:00:30]} Bg6 {[%emt 0:00:30]} 40. Rf1 {[%emt 0:00:30]} Rh8 {[%emt 0:00:30]} 41. Qf4 {[%emt 0:00:30]} Qh1+ {[%emt 0:00:30]} 42. Kf2 {[%emt 0:00:30]} Qh2 {[%emt 0:00:30]} 43. Qg5 {[%emt 0:00:30]} (43. Qxh2 $19 Rxh2 44. Rd1) 43... Qh4+ {[%emt 0:00:30]} (43... Rf8+ $142 44. Ke3 Qg3+ (44... Rxf1 $2 45. Qxg6+ Kd7 46. Qg7+ Kc8 47. Kd4 $19) 45. Rf3 Rxf3+ (45... exf3 $2 46. Qxg6+ Kd7 47. Qg7+ Ke8 48. Qg6+ Kd8 49. Qg5+ Kc8 50. gxf3 $19) (45... Qe1+ $2 46. Kd4 $19) 46. Kd4 Rf6 (46... Qxg2 $2 47. Qxg6+ Ke7 48. Qg5+ Rf6 49. Qe5+ Re6 50. Qc7+ Kf6 51. Qd8+ Re7 52. Qd6+ Kf7 53. Qf4+ Ke6 54. Qxe4+ Qxe4+ 55. Kxe4 $19) (46... Qd6+ $2 47. Kc4 $19) 47. Kc4 e3 (47... Qxg2 $2 48. Kb3 $19) 48. Kc5 e2 (48... Qxg2 $2 49. Qxe3+ Kd7 50. Qd4+ Qd5+ 51. Qxd5+ cxd5 52. g5 $19) (48... Qd6+ $2 49. Kb6 $19) 49. Kb4 Qd6+ (49... e1=R 50. Kb3 Qd6 51. c4 Qd3+ 52. Ka4 Rf2 53. Qc5 Rxb2 54. Qf5+ Bxf5 55. gxf5+ Kf7 56. g4 Rxa2+ 57. Kb4 Qa3#) 50. Ka5 b6+ (50... e1=R {gets mated.} 51. b4 Re5+ 52. Ka4 Rxg5 53. Kb3 Qd1+ 54. Ka3 Qc1+ 55. Kb3 Bc2+ 56. Kc4 Rf4#) 51. Kxa6 Bd3+ (51... e1=R {leads to mate.} 52. b4 Re5 53. Qxf6+ Kxf6 54. c4 Re7 55. g5+ Kxg5 56. b5 Qb8 57. bxc6 Qa7+ 58. Kb5 Qa5#) 52. c4 Bxc4+ (52... e1=R $2 53. Qg8+ Kd7 54. b4 $19) 53. Qb5 Bxb5+ (53... cxb5 {is a self mate.} 54. b3 Qc6 55. g3 Rf8 56. bxc4 Ra8#) 54. Kxb6 Qd4+ (54... e1=R 55. b3 Qd4+ 56. Ka5 Bd3 57. g5 Rf5#) (54... Qb8+ $2 55. Kc5 e1=Q 56. g5 Qa7#) 55. Kb7 Rf7+ 56. Kc8 Qh8#) 0-1

[Event "17th Paracin Open 2024"]
[Site "Paracin"]
[Date "2024.07.06"]
[Round "5.20"]
[White "Dvalishvili, Pavel S."]
[Black "Gov, Guy"]
[Result "1-0"]
[ECO "C77"]
[WhiteElo "2366"]
[BlackElo "2236"]
[Annotator "RC"]
[PlyCount "89"]
[EventDate "2024.07.02"]
[EventType "swiss"]
[EventCountry "SRB"]
[SourceTitle "playchess.com"]
[Source "ChessBase"]
[SourceQuality "1"]
[TimeControl "5400+30"]

1. e4 {[%emt 1:31:00]} e5 {[%emt 1:31:00]} 2. Nf3 {[%emt 0:00:30]} Nc6 {[%emt 0:00:30]} 3. Bb5 {[%emt 0:00:30]} a6 {[%emt 0:00:30]} 4. Ba4 {[%emt 0:00:30]} Nf6 {[%emt 0:00:30]} 5. Qe2 {[%emt 0:00:30]} b5 {[%emt 0:00:30]} 6. Bb3 Be7 {[%emt 0:00:30]} 7. d4 {[%emt 0:01:00]} d6 {[%emt 0:00:30]} 8. c3 {[%emt 0:00:30]} O-O {[%emt 0:00:30]} 9. d5 {[%emt 0:00:30]} Na5 {[%emt 0:00:30]} 10. Bc2 c5 {[%emt 0:00:30]} 11. Nbd2 {[%emt 0:01:00]} Bg4 {[%emt 0:00:30]} 12. h3 {[%emt 0:00:30]} Bh5 {[%emt 0:00:30]} 13. g4 {[%emt 0:00:30]} Bg6 {[%emt 0:00:30]} 14. Nf1 {[%emt 0:00:30]} Qd7 {[%emt 0:00:30]} 15. Ng3 {[%emt 0:00:30]} Rfe8 {[%emt 0:00:30]} 16. Nh4 {[%emt 0:00:30]} Qb7 {[%emt 0:00:30]} 17. g5 {[%emt 0:00:30]} Nd7 {[%emt 0:00:30]} 18. Ng2 {[%emt 0:00:30]} f6 {[%emt 0:00:30]} 19. h4 {[%emt 0:00:30]} Rf8 {[%emt 0:00:30]} 20. h5 {[%emt 0:00:30]} Be8 {[%emt 0:00:30]} 21. Nf5 {[%emt 0:00:30]} Nb6 {[%emt 0:00:30]} 22. gxf6 {[%emt 0:00:30]} Rxf6 {[%emt 0:00:30]} 23. Nxe7+ {[%emt 0:00:30]} Qxe7 {[%emt 0:00:30]} 24. Bg5 {[%emt 0:00:30]} b4 {[%emt 0:00:30]} 25. cxb4 {[%emt 0:00:30]} cxb4 {[%emt 0:00:30]} 26. Ne3 {[%emt 0:00:30]} Qf8 {[%emt 0:00:30]} 27. Bxf6 {[%emt 0:00:30]} Qxf6 {[%emt 0:00:30]} 28. Rg1 {[%emt 0:00:30]} Bd7 {[%emt 0:00:30]} 29. O-O-O {[%emt 0:00:30]} Nb7 {[%emt 0:00:30]} 30. Rg3 {[%emt 0:00:30]} Nc5 {[%emt 0:00:30]} 31. Rdg1 {[%emt 0:00:30]} Rf8 {[%emt 0:00:30]} 32. Rxg7+ {[%emt 0:00:30]} Qxg7 33. Rxg7+ {[%emt 0:00:30]} Kxg7 {[%emt 0:01:00]} 34. Qe1 {[%emt 0:00:30]} a5 {[%emt 0:00:30]} 35. b3 {[%emt 0:00:30]} Kh6 {[%emt 0:00:30]} 36. Qe2 {[%emt 0:00:30]} Rf4 {[%emt 0:00:30]} 37. Ng2 {[%emt 0:00:30]} Rg4 {[%emt 0:00:30]} 38. f3 {[%emt 0:00:30]} Rg5 {[%emt 0:00:30]} 39. f4 {[%emt 0:00:30]} exf4 {[%emt 0:00:30]} 40. Nxf4 Rg1+ {[%emt 0:00:30]} 41. Kd2 {[%emt 0:01:00]} Rg3 {[%emt 0:00:30]} 42. Qf2 {[%emt 0:00:30]} Rg4 {[%emt 0:00:30]} 43. Ne6 {[%emt 0:00:30]} Bxe6 {[%emt 0:00:30]} 44. dxe6 {[%emt 0:00:30]} Nxe4+ {[%emt 0:00:30]} 45. Bxe4 {[%emt 0:00:30]} 1-0